bitfinex/quotes_SOLUSD_20250228
["timestamp","ask_amount","ask_price","bid_price","bid_amount"]
[1740734790572,18.64964886,132.0,131.94,8.8]
[1740734790788,7.5723,132.06,131.95,0.14216157]
[1740734791280,6.4566,132.12,132.0,0.14216157]
[1740734791465,7.5694,132.11,132.01,8.86]
[1740734791671,20.0,132.08,132.01,8.86]
[1740734791879,18.64964886,132.07,132.01,8.86]
[1740734792080,7.5694,132.11,132.01,8.86]
[1740734792805,20.0,132.07,132.01,8.86]
[1740734792984,82.8,132.06,132.01,8.86]
[1740734793498,18.64964886,132.05,132.01,8.86]
[1740734794084,82.8,132.06,132.01,8.86]
[1740734794495,18.64964886,132.05,132.01,8.86]
[1740734794670,82.8,132.06,132.01,8.86]
[1740734795394,82.8,132.06,132.02,0.14216157]
[1740734796081,82.8,132.05,132.01,8.86]
[1740734796491,82.8,132.04,132.01,8.86]
[1740734796803,82.8,132.04,131.96,133.49869299]
[1740734796804,82.8,132.03,131.96,127.7]
[1740734797101,7.5711,132.08,131.97,8.86]
[1740734797308,82.8,132.07,131.97,8.86]
[1740734797474,18.64964886,132.06,131.98,0.14216157]
[1740734797787,18.64964886,132.06,131.98,312.14216157]
[1740734797978,18.64964886,132.03,131.96,127.7]
[1740734798189,0.14216157,132.07,131.96,127.7]
[1740734798190,18.64964886,132.01,131.97,8.84]
[1740734798388,82.8,132.0,131.97,8.84]
[1740734798699,82.8,131.99,131.97,8.84]
[1740734799802,82.8,131.98,131.97,8.84]
[1740734800702,101.44964886,131.97,131.96,127.7]
[1740734800872,82.8,131.97,131.93,1.5178]
[1740734801077,82.8,131.96,131.93,313.5178]
[1740734801299,7.5752,132.01,131.93,313.5178]
[1740734801498,82.8,132.0,131.93,313.5178]
[1740734801807,18.64964886,131.99,131.93,1.5178]
[1740734802900,7.5763,131.99,131.93,1.5178]
[1740734803077,82.8,132.0,131.93,1.5178]
[1740734803276,90.3758,132.0,131.93,1.5178]
[1740734803878,18.64964886,131.99,131.93,1.5178]
[1740734804996,90.3769,131.98,131.93,1.5178]
[1740734805189,82.8,131.97,131.93,1.5178]
[1740734806186,82.8,131.96,131.93,1.5178]
[1740734809500,82.8,131.96,131.93,313.5178]
[1740734810080,82.8,131.96,131.94,127.66]
[1740734810478,82.8,131.95,131.94,127.66]
[1740734810682,18.64964886,131.95,131.94,127.66]
[1740734812006,26.22824886,131.95,131.94,127.66]
[1740734812582,26.37041043,131.95,131.94,127.66]
[1740734813488,26.37041043,131.95,131.94,88.3174]
[1740734813696,18.79181043,131.94,131.93,0.063]
[1740734814315,7.5786,131.95,131.93,0.063]
[1740734814800,7.5757,132.0,131.93,0.063]
[1740734815213,18.64964886,131.99,131.93,0.063]
[1740734815511,26.36691043,132.01,131.93,0.063]
[1740734815813,18.64964886,131.97,131.93,0.063]
[1740734815990,82.8,131.96,131.93,0.063]
[1740734816689,82.8,131.95,131.93,0.063]
[1740734816893,82.8,131.95,131.93,1.6113]
[1740734817411,82.8,131.95,131.93,129.3113]
[1740734817795,82.8,131.95,131.93,441.3113]
[1740734818098,82.8,131.95,131.93,129.3113]
[1740734819832,82.8,131.94,131.93,129.3113]
[1740734820001,7.5764,131.99,131.93,129.3113]
[1740734820190,18.64964886,131.97,131.93,129.3113]
[1740734820389,18.64964886,131.97,131.94,8.76]
[1740734820614,82.8,131.98,131.94,8.76]
[1740734820884,82.8,131.98,131.95,0.14216157]
[1740734822390,82.8,131.98,131.94,16.3391]
[1740734822822,82.8,131.97,131.93,0.063]
[1740734824222,82.8,131.96,131.93,0.063]
[1740734824406,82.8,131.95,131.93,0.063]
[1740734824592,82.8,131.95,131.93,312.063]
[1740734825521,82.8,131.95,131.94,127.68]
[1740734826216,82.8,131.95,131.94,127.82216157]
[1740734826423,82.8,132.01,131.95,0.14216157]
[1740734826719,82.8,132.01,131.97,0.14216157]
[1740734827305,82.8,132.0,131.97,0.14216157]
[1740734827517,82.8,132.04,132.0,0.14216157]
[1740734827823,82.83,132.06,132.02,0.14216157]
[1740734828138,0.03,132.06,132.05,21.66676157]
[1740734828443,82.8,132.14,132.07,0.14216157]
[1740734828747,82.8,132.13,132.08,8.84]
[1740734829041,82.8,132.12,132.08,8.84]
[1740734829211,18.64964886,132.11,132.08,8.84]
[1740734830311,82.8,132.12,132.08,8.84]
[1740734831210,82.8,132.11,132.08,8.84]
[1740734831433,82.8,132.14,132.11,20.0]
[1740734831620,0.03,132.15,132.12,0.14216157]
[1740734831946,0.03,132.15,132.14,312.0]
[1740734832147,0.03,132.15,132.14,321.16216157]
[1740734832727,0.03,132.15,132.14,9.02]
[1740734832928,82.83,132.15,132.14,9.02]
[1740734834415,0.03,132.15,132.14,9.16216157]
[1740734835158,0.03,132.16,132.15,1.72876157]
[1740734835359,0.03,132.16,132.15,131.32876157]
[1740734835559,0.03,132.2,132.18,20.14216157]
[1740734835858,0.03,132.2,132.18,339.70746157]
[1740734836158,0.03,132.2,132.18,312.14216157]
[1740734836557,0.03,132.2,132.18,319.70756157]
[1740734837054,82.83,132.29,132.23,0.14216157]
[1740734837269,82.83,132.29,132.25,0.14216157]
[1740734837428,82.83,132.29,132.25,127.54]
[1740734837625,82.8,132.28,132.25,127.54]
[1740734837857,82.8,132.27,132.25,127.54]
[1740734838234,0.03,132.29,132.26,0.14216157]
[1740734838633,0.03,132.29,132.28,20.14216157]
[1740734840147,0.03,132.29,132.28,332.14216157]
[1740734840350,0.03,132.29,132.28,339.70186157]
[1740734840944,0.03,132.3,132.29,0.14216157]
[1740734841552,0.03,132.3,132.28,0.14216157]
[1740734842032,0.03,132.3,132.29,20.0]
[1740734842253,0.03,132.3,132.25,129.185]
[1740734842455,0.03,132.3,132.25,136.7463]
[1740734842771,0.03,132.3,132.26,0.14216157]
[1740734842959,0.03,132.3,132.25,129.185]
[1740734843269,0.03,132.3,132.27,0.14216157]
[1740734844150,0.03,132.3,132.27,7.70236157]
[1740734844360,0.03,132.3,132.27,0.14216157]
[1740734845049,0.03,132.3,132.27,18.79181043]
[1740734845273,0.03,132.3,132.27,0.14216157]
[1740734845454,82.8,132.29,132.25,127.54]
[1740734845655,82.8,132.29,132.26,9.36]
[1740734846247,82.8,132.29,132.27,0.14216157]
[1740734847353,82.8,132.29,132.26,9.36]
[1740734848143,0.03,132.3,132.26,18.9208]
[1740734848445,0.03,132.29,132.27,0.14216157]
[1740734850446,0.03,132.29,132.27,7.70226157]
[1740734850650,0.03,132.29,132.27,0.14216157]
[1740734850847,0.03,132.29,132.27,7.70236157]
[1740734851083,0.03,132.29,132.28,2.14216157]
[1740734851448,0.03,132.29,132.28,332.79181043]
[1740734851652,0.03,132.3,132.29,20.79181043]
[1740734851979,0.03,132.3,132.29,30.57321114]
[1740734852167,0.0001,132.3,132.29,38.13231114]
[1740734852358,0.0001,132.3,132.29,17.48266228]
[1740734852558,0.0001,132.3,132.29,15.89616157]
[1740734852774,0.0001,132.3,132.29,9.32516157]
[1740734852959,0.0001,132.3,132.27,7.5602]
[1740734853480,0.0001,132.3,132.28,0.14216157]
[1740734853699,0.0001,132.3,132.29,9.32]
[1740734855379,0.0001,132.3,132.29,9.46216157]
[1740734855574,0.0001,132.3,132.29,17.02126157]
[1740734856459,0.03,132.43,132.37,22.0]
[1740734856677,0.03,132.43,132.42,40.79181043]
[1740734856882,82.8,132.52,132.47,0.14216157]
[1740734857178,123.5820271,132.55,132.48,136.68]
[1740734857384,82.8,132.52,132.48,136.68]
[1740734858176,82.8,132.49,132.48,127.36]
[1740734858374,82.8,132.48,132.45,9.3]
[1740734858560,82.3,132.48,132.45,9.3]
[1740734858761,82.3,132.47,132.45,9.3]
[1740734858959,20.0,132.42,132.4,127.3]
[1740734859259,18.64964886,132.4,132.35,9.3]
[1740734859449,82.3,132.39,132.35,9.3]
[1740734860368,100.94964886,132.38,132.35,9.3]
[1740734860575,82.3,132.37,132.35,9.3]
[1740734860788,100.94964886,132.36,132.35,9.3]
[1740734861253,82.3,132.36,132.35,9.3]
[1740734861456,20.0,132.36,132.35,9.3]
[1740734862257,38.64964886,132.36,132.35,9.3]
[1740734862786,20.0,132.36,132.35,9.3]
[1740734863579,7.5534,132.39,132.35,9.3]
[1740734863580,1.23,132.5,132.4,0.14216157]
[1740734863767,1.23,132.5,132.42,0.14216157]
[1740734864080,1.23,132.5,132.43,127.32]
[1740734864290,20.0,132.48,132.43,127.32]
[1740734865087,8.7774,132.5,132.43,127.32]
[1740734865590,38.64964886,132.49,132.43,127.32]
[1740734865762,18.64964886,132.49,132.43,127.32]
[1740734865965,26.19734886,132.49,132.43,136.76]
[1740734866687,20.0,132.46,132.43,136.76]
[1740734867295,82.8,132.45,132.43,136.76]
[1740734868285,82.8,132.44,132.43,136.76]
[1740734868461,82.8,132.48,132.43,136.76]
[1740734868663,82.8,132.47,132.44,0.14216157]
[1740734868978,82.8,132.49,132.44,0.14216157]
[1740734869794,82.8,132.48,132.43,136.76]
[1740734869983,82.8,132.47,132.43,136.76]
[1740734870283,82.8,132.47,132.44,0.14216157]
[1740734871084,1.23,132.5,132.44,0.14216157]
[1740734871383,1.23,132.5,132.43,136.76]
[1740734871384,82.8,132.49,132.43,136.76]
[1740734871589,18.64964886,132.48,132.43,127.32]
[1740734871784,82.8,132.49,132.44,9.32]
[1740734871965,90.3478,132.49,132.44,9.32]
[1740734872965,20.0,132.45,132.43,127.32]
[1740734873167,82.8,132.44,132.43,127.32]
[1740734873874,90.3505,132.44,132.43,127.32]
[1740734874083,26.20014886,132.44,132.43,127.32]
[1740734874456,7.5505,132.44,132.43,127.32]
[1740734875291,26.19894886,132.47,132.43,127.32]
[1740734875590,26.4214,132.47,132.43,127.32]
[1740734875754,20.0,132.44,132.43,127.32]
[1740734875955,27.5505,132.44,132.43,127.32]
[1740734876210,46.20014886,132.44,132.43,127.32]
[1740734876387,27.5505,132.44,132.43,127.32]
[1740734876982,20.0,132.44,132.43,127.32]
[1740734877285,7.5477,132.49,132.43,127.32]
[1740734877488,20.0,132.47,132.43,127.32]
[1740734877690,20.0,132.45,132.43,127.32]
[1740734878067,18.64964886,132.48,132.43,127.32]
[1740734878068,8.7771,132.5,132.43,127.32]
[1740734878573,1.23,132.5,132.43,134.8711]
[1740734878875,1.23,132.5,132.46,2.14216157]
[1740734879058,1.23,132.5,132.48,0.14216157]
[1740734879259,1.23,132.5,132.48,20.79181043]
[1740734879466,82.8,132.54,132.48,22.37613509]
[1740734880004,82.8,132.54,132.49,7.5477]
[1740734880171,40.7820271,132.55,132.52,2.0]
[1740734880379,19.46117111,132.55,132.54,2.14216157]
[1740734880700,17.79457111,132.55,132.54,0.14216157]
[1740734881004,17.79457111,132.55,132.54,11.38216157]
[1740734881211,16.12797111,132.55,132.54,28.03181043]
[1740734881404,16.12797111,132.55,132.54,9.38216157]
[1740734881998,16.12797111,132.55,132.54,321.38216157]
[1740734882390,16.12797111,132.55,132.54,9.38216157]
[1740734882784,16.12797111,132.55,132.54,9.24]
[1740734883476,98.92797111,132.55,132.54,9.24]
[1740734883897,106.47227111,132.55,132.54,9.24]
[1740734884404,42.32191997,132.55,132.54,9.24]
[1740734884616,23.67227111,132.55,132.54,9.24]
[1740734884791,18.64964886,132.55,132.54,9.24]
[1740734885106,70.42296345,133.13,132.67,2.0645]
[1740734885274,37.24120975,133.28,133.12,312.0]
[1740734885475,134.48368422,133.25,133.23,37.95809247]
[1740734885692,134.48368422,133.25,133.23,16.44]
[1740734885900,132.09202366,133.25,133.24,7.5052]
[1740734886230,316.59620181,133.29,133.24,63.29675663]
[1740734886413,237.4344913,133.39,133.24,63.29675663]
[1740734886576,127.16,133.35,133.3,5.85270375]
[1740734886777,127.16,133.35,133.26,37.48270883]
[1740734886997,1.57469642,133.34,133.25,37.68846639]
[1740734887179,1.57469642,133.34,133.23,37.39807355]
[1740734887586,1.57469642,133.34,133.28,37.40359161]
[1740734887915,0.5,133.4,133.33,42.76798921]
[1740734888093,1.57469642,133.36,133.33,42.76798921]
[1740734888288,1.57469642,133.36,133.27,44.52753421]
[1740734888703,1.57469642,133.36,133.27,6.79399003]
[1740734889109,18.26424267,133.37,133.33,10.61888435]
[1740734889306,18.26424267,133.37,133.3,21.23776871]
[1740734889810,100.86649296,133.41,133.3,21.23776871]
[1740734890187,100.86649296,133.41,133.22,84.30119572]
[1740734890614,32.88261556,133.41,133.22,84.30119572]
[1740734890917,7.4962,133.4,133.22,84.30119572]
[1740734891117,7.4962,133.4,133.22,85.67379099]
[1740734891318,8.44616158,133.41,133.22,17.79039527]
[1740734891616,126.76,133.4,133.22,17.79039527]
[1740734891985,126.76,133.4,133.22,14.61080645]
[1740734892298,126.76,133.4,133.23,1.37249225]
[1740734892492,126.76,133.4,133.23,2.94773048]
[1740734892693,101.42151527,133.4,133.23,2.94773048]
[1740734893110,108.91781527,133.4,133.23,314.94773048]
[1740734893321,76.98516129,133.4,133.23,313.37249225]
[1740734893504,76.98516129,133.4,133.23,1.37249225]
[1740734893712,95.72576129,133.4,133.23,1.37249225]
[1740734894218,95.72576129,133.4,133.22,13.23821118]
[1740734895113,20.0,133.37,133.22,13.23821118]
[1740734895322,20.0,133.37,133.22,10.05862236]
[1740734895499,18.64964886,133.32,133.22,10.05862236]
[1740734896225,20.0,133.32,133.22,10.05862236]
[1740734897307,20.0,133.28,133.22,10.05862236]
[1740734897506,126.58,133.27,133.22,10.05862236]
[1740734897892,20.0,133.24,133.22,10.05862236]
[1740734898098,7.505,133.25,133.22,10.05862236]
[1740734898397,20.0,133.23,133.22,10.05862236]
[1740734900010,134.0836,133.27,133.22,10.05862236]
[1740734902711,20.0,133.23,133.22,10.05862236]
[1740734902919,7.5041,133.26,133.22,10.05862236]
[1740734903719,126.58,133.27,133.22,10.05862236]
[1740734903920,134.0836,133.27,133.22,10.05862236]
[1740734904522,126.58,133.27,133.22,10.05862236]
[1740734904725,134.0835,133.27,133.22,10.05862236]
[1740734905216,126.58,133.27,133.22,10.05862236]
[1740734905798,18.64964886,133.26,133.22,10.05862236]
[1740734905999,20.0,133.23,133.22,10.05862236]
[1740734906425,27.5058,133.23,133.09,0.80469397]
[1740734906723,0.14216157,133.22,133.09,0.80469397]
[1740734907017,18.64964886,133.19,133.09,0.80469397]
[1740734907216,18.64964886,133.18,133.09,0.80469397]
[1740734907423,126.52,133.17,133.09,0.80469397]
[1740734908407,7.5097,133.16,133.09,0.80469397]
[1740734909906,26.2841,133.16,133.09,0.80469397]
[1740734911434,18.64964886,133.15,133.09,0.80469397]
[1740734911605,26.2841,133.16,133.09,0.80469397]
[1740734912130,18.64964886,133.15,133.09,0.80469397]
[1740734912419,26.2841,133.16,133.09,0.80469397]
[1740734912812,18.64964886,133.15,133.09,0.80469397]
[1740734913324,20.0,133.12,133.09,0.80469397]
[1740734913710,18.64964886,133.15,133.09,0.80469397]
[1740734914022,26.2841,133.16,133.09,0.80469397]
[1740734914526,18.64964886,133.15,133.09,0.80469397]
[1740734915635,20.0,133.12,133.09,9.397e-05]
[1740734915807,38.64964886,133.11,133.09,9.397e-05]
[1740734916004,82.8,133.14,133.09,9.397e-05]
[1740734916323,44.93964886,133.13,133.09,9.397e-05]
[1740734916508,26.29,133.13,133.09,9.397e-05]
[1740734917632,18.64964886,133.12,133.09,9.397e-05]
[1740734918308,26.29,133.13,133.09,9.397e-05]
[1740734918309,7.5131,133.1,133.09,9.397e-05]
[1740734918911,126.58,133.11,133.09,9.397e-05]
[1740734919439,94.64734602,133.11,133.09,9.397e-05]
[1740734919818,94.64734602,133.11,133.09,312.00009397]
[1740734921311,102.16004602,133.11,133.09,9.397e-05]
[1740734925939,134.0684,133.19,133.11,4.1039856]
[1740734926245,134.0684,133.19,133.11,8.15818811]
[1740734926439,152.8385,133.19,133.11,14.6706644]
[1740734928033,152.8385,133.19,133.11,4.1039856]
[1740734928415,134.0684,133.19,133.11,4.1039856]
[1740734929010,126.56,133.19,133.13,0.14216157]
[1740734929327,126.56,133.19,133.13,1.51568476]
[1740734929932,134.068,133.19,133.13,313.51568476]
[1740734930436,5.08738365,133.18,133.14,10.5666788]
[1740734930625,18.7729,133.17,133.14,10.5666788]
[1740734930822,18.7729,133.17,133.14,29.64313654]
[1740734931026,7.5086,133.18,133.14,29.64313654]
[1740734931335,7.5086,133.18,133.14,23.13066025]
[1740734931537,1.0,133.23,133.16,6.4933]
[1740734931737,0.03,133.36,133.27,3.78728944]
[1740734931921,0.03,133.36,133.27,5.15936974]
[1740734932125,0.03,133.36,133.28,1.71705068]
[1740734932315,0.03,133.36,133.31,0.14216157]
[1740734932637,0.03,133.36,133.32,20.14216157]
[1740734932813,7.4969,133.39,133.37,35.56043346]
[1740734933135,126.5,133.38,133.37,35.56043346]
[1740734933335,29.14739657,133.38,133.37,72.84101997]
[1740734933820,7.4946,133.43,133.37,72.84101997]
[1740734934026,7.5264,133.4,133.35,37.68863449]
[1740734934236,0.03,133.4,133.32,39.13407358]
[1740734934448,7.5262,133.4,133.31,7.41316861]
[1740734934628,0.03,133.4,133.31,6.0415]
[1740734934831,0.14216157,133.43,133.31,6.0415]
[1740734935045,0.03,133.37,133.31,6.0415]
[1740734935223,0.03,133.37,133.32,37.55965732]
[1740734935423,0.14216157,133.43,133.32,52.51203026]
[1740734935640,0.14216157,133.41,133.32,14.95237294]
[1740734935837,0.14216157,133.39,133.33,10.13801523]
[1740734936040,82.8,133.38,133.22,43.43637167]
[1740734936231,75.006445,133.45,133.22,6.282]
[1740734936541,18.7379,133.42,133.22,6.282]
[1740734936714,82.8,133.41,133.36,8.41118986]
[1740734936917,218.4,133.4,133.17,3.1611]
[1740734937114,14.80318832,133.39,133.17,3.1611]
[1740734937350,14.80318832,133.38,133.17,4.53421063]
[1740734937646,20.0,133.3,133.17,4.53421063]
[1740734937833,18.64964886,133.29,133.17,4.53421063]
[1740734938015,20.0,133.3,133.17,3.1611]
[1740734938217,23.78899916,133.29,133.17,3.1611]
[1740734938440,23.78899916,133.29,133.18,18.64964886]
[1740734938644,7.503,133.28,133.19,0.14216157]
[1740734938849,7.503,133.28,133.19,37.5803523]
[1740734939024,26.2605,133.28,133.18,37.05155146]
[1740734939344,18.64964886,133.28,133.2,37.50413504]
[1740734939555,0.14216157,133.33,133.2,37.50413504]
[1740734939840,0.14216157,133.33,133.19,19.93649726]
[1740734940021,0.14216157,133.34,133.19,19.93649726]
[1740734940223,101.39036157,133.34,133.19,19.93649726]
[1740734940425,101.2482,133.34,133.21,19.93649726]
[1740734940625,0.14216157,133.33,133.21,19.93649726]
[1740734941537,56.2471,133.34,133.21,9.726e-05]
[1740734941737,56.2471,133.34,133.21,1.37279557]
[1740734941931,20.0,133.31,133.21,9.726e-05]
[1740734942428,18.79181043,133.3,133.21,9.726e-05]
[1740734942649,0.14216157,133.3,133.21,9.726e-05]
[1740734942818,20.0,133.25,133.21,9.726e-05]
[1740734943154,82.8,133.29,133.21,9.726e-05]
[1740734943442,37.24120975,133.28,133.21,9.726e-05]
[1740734943639,18.79181043,133.23,133.16,21.60016884]
[1740734943844,20.0,133.24,133.16,21.60016884]
[1740734944443,20.0,133.2,133.16,21.60016884]
[1740734945144,175.05294474,133.22,133.15,45.00731337]
[1740734945353,37.7214793,133.25,133.18,4.2266]
[1740734945647,37.7214793,133.25,133.17,24.83166313]
[1740734945822,49.93964519,133.26,133.21,20.0]
[1740734946224,49.93964519,133.26,133.15,21.54604588]
[1740734946424,1.97005621,133.25,133.15,21.54604588]
[1740734946737,6.0042,133.24,133.15,21.54604588]
[1740734946925,1.97105736,133.23,133.15,21.54604588]
[1740734947123,6.0042,133.24,133.15,21.54604588]
[1740734947346,6.0042,133.24,133.16,0.063]
[1740734947551,116.41145866,133.18,133.16,0.063]
[1740734948123,116.41145866,133.18,133.16,312.063]
[1740734948325,116.41145866,133.18,133.16,0.063]
[1740734948929,69.97503716,133.17,133.16,0.063]
[1740734949452,69.97503716,133.17,133.1,18.64964886]
[1740734950160,69.97503716,133.17,133.09,18.64964886]
[1740734950335,69.97503716,133.17,133.09,20.02358486]
[1740734950657,69.97503716,133.17,133.1,3.73512365]
[1740734950851,9.10313756,133.2,133.19,7.508]
[1740734951056,139.69375039,133.24,133.19,7.508]
[1740734951357,139.69375039,133.24,133.23,0.14216157]
[1740734951865,139.69375039,133.24,133.22,0.14216157]
[1740734952043,139.69375039,133.24,133.23,20.0]
[1740734952443,100.66925039,133.24,133.23,38.79181043]
[1740734952641,59.06385039,133.24,133.23,0.14216157]
[1740734952845,21.21635039,133.24,133.23,7.64796157]
[1740734953042,11.67606641,133.25,133.24,18.79181043]
[1740734953247,11.67606641,133.25,133.24,0.14216157]
[1740734953757,11.67606641,133.25,133.24,20.0]
[1740734954144,11.67606641,133.25,133.24,20.14216157]
[1740734954458,11.67606641,133.25,133.24,20.0]
[1740734954648,162.97604212,133.29,133.24,20.0]
[1740734955034,170.47864212,133.29,133.16,7.5097]
[1740734955564,170.47864212,133.29,133.17,18.79181043]
[1740734956354,170.47864212,133.29,133.12,63.852]
[1740734956563,1.96968091,133.28,133.12,63.852]
[1740734956753,1.96968091,133.28,133.12,26.292]
[1740734957257,1.96968091,133.28,133.16,20.14216157]
[1740734957447,1.96968091,133.28,133.13,18.64964886]
[1740734958038,7.5035,133.27,133.16,332.0]
[1740734958238,1.97039738,133.26,133.16,332.0]
[1740734958638,1.97039738,133.26,133.17,20.0]
[1740734958874,162.97604212,133.29,133.18,126.56216157]
[1740734959166,162.97604212,133.29,133.2,0.14216157]
[1740734959537,162.97604212,133.29,133.22,0.14216157]
[1740734959867,162.97604212,133.29,133.25,20.0]
[1740734960062,162.97604212,133.29,133.26,7.5041]
[1740734961285,163.00604212,133.29,133.26,7.5041]
[1740734961656,163.00604212,133.29,133.26,319.5041]
[1740734962775,163.00604212,133.29,133.28,20.0]
[1740734962941,88.7407059,133.29,133.28,38.79181043]
[1740734963271,73.65329298,133.29,133.27,0.14216157]
[1740734963447,6.1461,133.39,133.3,0.14216157]
[1740734964056,13.6434,133.39,133.31,7.5013]
[1740734964263,13.6434,133.39,133.3,7.5017]
[1740734964264,7.4974,133.38,133.3,7.5017]
[1740734964565,7.4982,133.37,133.29,27.5023]
[1740734964770,7.4982,133.37,133.24,0.14216157]
[1740734965151,6.1461,133.39,133.26,55.94894762]
[1740734965484,13.643,133.39,133.3,0.14216157]
[1740734965977,6.1461,133.39,133.3,312.14216157]
[1740734966479,13.6429,133.39,133.31,7.5013]
[1740734966671,11.4155497,133.43,133.31,7.5013]
[1740734966863,20.0,133.42,133.31,9.07585847]
[1740734967172,0.14216157,133.44,133.31,7.5013]
[1740734967671,0.14216157,133.44,133.32,37.55965732]
[1740734967869,26.2318,133.43,133.31,44.93543581]
[1740734968073,26.2318,133.43,133.39,46.49544698]
[1740734968267,0.14216157,133.44,133.39,46.49544698]
[1740734969148,26.2318,133.43,133.39,46.49544698]
[1740734969350,18.79181043,133.39,133.25,37.86006733]
[1740734969563,20.0,133.4,133.26,1.57520008]
[1740734969778,29.0077,133.4,133.25,1.57486955]
[1740734970072,29.0077,133.4,133.26,312.0]
[1740734970280,0.14216157,133.39,133.26,312.0]
[1740734970678,7.4973,133.38,133.27,7.5035]
[1740734970974,7.4973,133.38,133.26,312.0]
[1740734971153,7.4973,133.38,133.24,37.41214886]
[1740734971154,18.79181043,133.37,133.23,7.5058]
[1740734971350,18.79181043,133.33,133.2,45.01143504]
[1740734971551,20.0,133.34,133.2,9.08329263]
[1740734971978,18.79181043,133.36,133.2,9.08329263]
[1740734972473,82.8,133.37,133.23,20.0]
[1740734972874,26.2447,133.36,133.24,7.5052]
[1740734973374,26.2447,133.36,133.25,0.14216157]
[1740734973581,7.4985,133.36,133.25,18.79181043]
[1740734974274,7.4985,133.36,133.26,1.57512863]
[1740734974774,18.79181043,133.38,133.25,312.0]
[1740734974980,18.7462,133.36,133.26,7.5041]
[1740734975561,18.7462,133.36,133.25,312.0]
[1740734975889,18.7462,133.36,133.24,7.5048]
[1740734976554,38.79181043,133.35,133.22,7.5063]
[1740734976951,38.79181043,133.35,133.23,16.18]
[1740734976952,63.7467,133.34,133.23,16.18]
[1740734977378,18.79181043,133.33,133.23,16.18]
[1740734977583,20.0,133.3,133.21,16.16]
[1740734978962,26.2605,133.28,133.2,16.08]
[1740734979570,26.2605,133.28,133.15,18.71264886]
[1740734979571,35.3232,133.28,133.19,16.02]
[1740734982282,20.0,133.24,133.17,15.84]
[1740734982963,20.0,133.24,133.16,15.8]
[1740734983185,26.2703,133.23,133.16,15.8]
[1740734985890,7.5058,133.23,133.16,23.3096]
[1740734986188,18.64964886,133.22,133.15,0.063]
[1740734987073,0.14216157,133.22,133.15,0.063]
[1740734987275,18.7673,133.21,133.15,0.063]
[1740734988186,18.64964886,133.2,133.15,0.063]
[1740734988870,0.14216157,133.19,133.15,0.063]
[1740734989278,44.92974886,133.18,133.15,0.063]
[1740734989670,48.49244886,133.16,133.05,0.063]
[1740734989867,18.64964886,133.15,133.05,15.403]
[1740734990668,20.0,133.12,133.05,15.403]
[1740734990990,20.0,133.04,133.02,31.62606618]
[1740734991166,20.0,133.03,133.02,6.618e-05]
[1740734991486,27.5171,133.03,133.02,6.618e-05]
[1740734991879,7.5171,133.03,133.02,6.618e-05]
[1740734992177,27.5171,133.03,133.02,6.618e-05]
[1740734992378,46.30891043,133.03,133.01,0.063]
[1740734992592,18.64964886,133.02,133.01,0.063]
[1740734993780,20.0,133.03,133.01,0.063]
[1740734994484,9.9219,133.04,133.01,0.063]
[1740734994686,126.46,133.05,133.01,0.063]
[1740734994896,10.6786,133.12,133.02,15.2]
[1740734995616,18.1906,133.12,133.02,15.2]
[1740734995784,18.64964886,133.09,133.02,15.2]
[1740734998079,38.64964886,133.05,133.02,15.2]
[1740734998300,20.0,133.05,133.02,15.2]
[1740734999887,20.0,133.05,133.01,0.063]
[1740734999888,38.79181043,133.04,133.01,0.063]
[1740735000382,20.0,132.99,132.96,0.063]
[1740735000698,82.8,133.0,132.96,0.063]
[1740735001505,7.5193,132.99,132.96,0.063]